lending/lending_fUSD_20260124
["ID","MTS","AMOUNT","RATE_DAILY","PERIOD"]
[403188255,1769258949128,-500.0,0.00011463,2]
[403188256,1769258949162,-500.0,0.00011463,2]
[403188257,1769258949195,-500.0,0.00011463,2]
[403188258,1769258949625,-500.0,0.00011463,2]
[403188259,1769258949659,-500.0,0.00011463,2]
[403188260,1769258949690,-500.0,0.00011463,2]
[403188261,1769258949722,-500.0,0.00011463,2]
[403188262,1769258949754,-500.0,0.00011463,2]
[403188263,1769258949855,-500.0,0.00011463,2]
[403188264,1769258949887,-500.0,0.00011463,2]
[403188265,1769258949921,-500.0,0.00011463,2]
[403188266,1769258949953,-500.0,0.00011463,2]
[403188267,1769258949984,-500.0,0.00011463,2]
[403188268,1769258950015,-500.0,0.00011463,2]
[403188269,1769258950045,-500.0,0.00011463,2]
[403188270,1769258950076,-500.0,0.00011463,2]
[403188271,1769258950108,-500.0,0.00011463,2]
[403188272,1769258950139,-500.0,0.00011463,2]
[403188273,1769258950275,-500.0,0.00011463,2]
[403188274,1769258950306,-152.57821328,0.00011463,2]
[403188275,1769258950335,-157.99542452,0.00011463,2]
[403188276,1769258950363,-157.99542452,0.00011463,2]
[403188277,1769258950793,-595.09543026,0.00011464,2]
[403188278,1769258951165,-116.3408834,0.00011464,2]
[403188279,1769258951181,-0.01,0.00011464,2]
[403188280,1769258951206,-500.0,0.00011464,2]
[403188281,1769258951221,-152.57821328,0.00011464,2]
[403188282,1769258951242,-157.99542452,0.00011464,2]
[403188283,1769258951262,-157.99542452,0.00011464,2]
[403188284,1769258951286,-8062.87187536,0.00011464,2]
[403188285,1769258951302,-1919.30742346,0.00011464,2]
[403188286,1769258951312,-4564.0921835,0.00011464,2]
[403188287,1769258951322,-152.13538667,0.00011464,2]
[403188288,1769258951332,-227.21,0.000115,2]
[403188289,1769258951342,-3137.26500637,0.00011554,2]
[403188290,1769258951370,-10000.01,0.00011554,2]
[403188291,1769258951399,-10000.01,0.00011554,2]
[403188292,1769258951414,-10000.01,0.00011554,2]
[403188293,1769258953621,-10000.01,0.00011554,2]
[403188294,1769258953732,-10000.01,0.00011554,2]
[403188295,1769258953842,-10000.01,0.00011554,2]
[403188296,1769258953949,-211.005736,0.00011554,2]
[403188297,1769258956289,-311.02179637,0.000115,2]
[403188298,1769258956641,-188.97820363,0.000115,2]
[403188299,1769258956682,-9622.05359274,0.00011554,2]
[403188300,1769258956766,-1282.08782741,0.00011554,2]
[403188301,1769258957795,500.0,0.00011463,2]
[403188302,1769258957842,500.0,0.00011463,2]
[403188303,1769258957900,500.0,0.00011463,2]
[403188304,1769258957959,500.0,0.00011463,2]
[403188305,1769258958005,500.0,0.00011463,2]
[403188306,1769258958067,200.0,0.00011463,2]
[403188307,1769258958557,-300.46683019,0.00011563,2]
[403188308,1769258958582,-155.91291047,0.00011564,2]
[403188310,1769258961639,-44.08708953,0.00011564,2]
[403188311,1769258961663,-113.39556644,0.00011564,2]
[403188312,1769258963551,-161.94720577,0.00011564,2]
[403188313,1769258965221,-216.42980746,0.00011564,2]
[403188314,1769258967898,-8.22742033,0.00011564,2]
[403188315,1769258967921,-200.0,0.00011564,2]
[403188316,1769258967946,-170.26622743,0.00011564,2]
[403188317,1769258967969,-297.33065542,0.00011564,2]
[403188318,1769258969411,-202.66934458,0.00011564,2]
[403188319,1769258969451,-96.20776594,0.00011564,2]
[403188320,1769258971214,-198.48000297,0.00011564,2]
[403188321,1769258973212,-205.31223109,0.00011564,2]
[403188322,1769258973235,-33.24713398,0.00011564,2]
[403188323,1769258975789,-187.27369909,0.00011564,2]
[403188324,1769258978153,-279.47916693,0.00011564,2]
[403188325,1769258978184,-500.0,0.00011564,2]
[403188326,1769258978215,-500.0,0.00011564,2]
[403188327,1769258978246,-500.0,0.00011564,2]
[403188328,1769258978279,-500.0,0.00011564,2]
[403188329,1769258978309,-500.0,0.00011564,2]
[403188330,1769258978339,-500.0,0.00011564,2]
[403188331,1769258978370,-500.0,0.00011564,2]
[403188332,1769258978399,-500.0,0.00011564,2]
[403188333,1769258978428,-151.0,0.00011564,2]
[403188334,1769258978459,-151.0,0.00011564,2]
[403188335,1769258978488,-246.52406605,0.00011564,2]
[403188336,1769258978519,-151.0,0.00011564,2]
[403188337,1769258978722,-151.0,0.00011564,2]
[403188338,1769258978751,-151.0,0.00011564,2]
[403188339,1769258978781,-151.0,0.00011564,2]
[403188340,1769258978815,-151.0,0.00011564,2]
[403188341,1769258978844,-151.0,0.00011564,2]
[403188342,1769258978874,-151.0,0.00011564,2]
[403188343,1769258978904,-151.0,0.00011564,2]
[403188344,1769258978937,-151.0,0.00011564,2]
[403188345,1769258978968,-151.0,0.00011564,2]
[403188346,1769258978999,-151.0,0.00011564,2]
[403188347,1769258979033,-151.0,0.00011564,2]
[403188348,1769258979064,-151.0,0.00011564,2]
[403188349,1769258979095,-151.0,0.00011564,2]
[403188350,1769258979127,-151.0,0.00011564,2]
[403188351,1769258979157,-151.0,0.00011564,2]
[403188352,1769258979566,-151.0,0.00011564,2]
[403188353,1769258979609,-151.0,0.00011564,2]
[403188354,1769258979639,-151.0,0.00011564,2]
[403188355,1769258979667,-151.0,0.00011564,2]
[403188356,1769258979695,-151.0,0.00011564,2]
[403188357,1769258979727,-151.0,0.00011564,2]
[403188358,1769258979755,-151.0,0.00011564,2]
[403188359,1769258979783,-151.0,0.00011564,2]
[403188360,1769258979811,-151.0,0.00011564,2]
[403188361,1769258979839,-151.0,0.00011564,2]
[403188362,1769258979868,-151.0,0.00011564,2]
[403188363,1769258979897,-151.0,0.00011564,2]
[403188364,1769258979929,-151.0,0.00011564,2]
[403188365,1769258979958,-500.0,0.00011564,2]
[403188366,1769258979989,-44.01,0.00011564,2]
[403188367,1769258980108,-455.99,0.00011564,2]
[403188368,1769258980136,-500.0,0.00011564,2]
[403188369,1769258980177,-500.0,0.00011564,2]
[403188370,1769258980209,-500.0,0.00011564,2]
[403188371,1769258980238,-500.0,0.00011564,2]
[403188372,1769258980268,-500.0,0.00011564,2]
[403188373,1769258980298,-500.0,0.00011564,2]
[403188374,1769258980330,-500.0,0.00011564,2]
[403188375,1769258980360,-500.0,0.00011564,2]
[403188376,1769258980391,-500.0,0.00011564,2]
[403188377,1769258980521,-245.0,0.00011564,2]
[403188378,1769258980542,-42.98105866,0.00011564,2]
[403188380,1769258983491,-334.95953409,0.00011564,2]
[403188381,1769258983522,-183.95516542,0.00011564,2]
[403188382,1769258983543,-262.14784922,0.00011564,2]
[403188383,1769258985201,-30.64697054,0.00011564,2]
[403188384,1769258985224,-266.55444611,0.00011564,2]
[403188385,1769258986625,-117.10232957,0.00011564,2]
[403188386,1769258986647,-71.31183426,0.00011578,2]
[403188387,1769258988974,-201.35302676,0.00011578,2]
[403188388,1769258991612,-262.34404567,0.00011578,2]
[403188389,1769258995877,-152.97215145,0.00011578,2]
[403188390,1769258997941,-267.46957151,0.00011578,2]
[403188391,1769259000034,-44.54937035,0.00011578,2]
[403188392,1769259000056,-113.77359448,0.00011664,2]
[403188393,1769259002595,-299.07558386,0.00011664,2]
[403188397,1769259005307,-440.46022887,0.00011664,2]
[403188402,1769259006719,-146.69059279,0.00011664,2]
[403188403,1769259006741,-120.41901044,0.00011664,2]
[403188409,1769259008738,-300.0,0.00011664,2]
[403188410,1769259008769,-124.58098956,0.00011664,2]
[403188414,1769259009740,-305.66652603,0.00011913,2]
[403188417,1769259011298,-142.49906674,0.00011913,2]
[403188419,1769259011321,-219.6528947,0.00012048,2]
[403188422,1769259012931,-221.0,0.00012048,2]
[403188444,1769259024020,-59.3471053,0.00012048,2]
[403188447,1769259024780,-167.56639458,0.00012078,2]
[403188448,1769259024801,-30.1209722,0.00012112,2]
[403188453,1769259027374,-233.13295432,0.00012112,2]
[403188459,1769259029792,-236.74607348,0.00012112,2]
[403188460,1769259029813,-92.09849177,0.00012112,2]
[403188464,1769259031565,-107.90150823,0.00012112,2]
[403188465,1769259031575,-300.0,0.00012178,2]
[403188466,1769259031585,-300.0,0.00012178,2]
[403188467,1769259031595,-300.0,0.00012178,2]
[403188468,1769259031604,-44.2679813,0.00012178,2]
[403188469,1769259031616,-1155.7320187,0.00012178,2]
[403188470,1769259031626,-4564.09218341,0.00012179,2]
[403188471,1769259031635,-698.21215148,0.00012229,2]
[403188472,1769259031645,-201.0,0.00012309,2]
[403188473,1769259031654,-6124.73070486,0.00012383,2]
[403188474,1769259031667,-2554.14498459,0.00012383,2]
[403188475,1769259031678,-301.57871283,0.00012383,2]
[403188476,1769259036051,194.63592023,0.00011462,2]
[403188477,1769259036171,500.0,0.00011462,2]
[403188478,1769259036447,500.0,0.00011462,2]
[403188479,1769259036531,500.0,0.00011462,2]
[403188480,1769259036604,500.0,0.00011462,2]
[403188481,1769259036681,189.55055392,0.00011462,2]
[403188485,1769259037597,-423.81024343,0.00012383,2]
[403188486,1769259037609,-468.78459916,0.00012383,2]
[403188487,1769259037623,-126.94075513,0.00012383,2]
[403188488,1769259037633,-250.0,0.00012482,2]
[403188489,1769259037643,-181.0,0.00012499,2]
[403188491,1769259037653,-255.0,0.00012529,2]
[403188492,1769259037663,-250.0,0.00012546,2]
[403188493,1769259037672,-479.08096629,0.00012546,2]
[403188495,1769259037683,-20.91903371,0.00012546,2]
[403188496,1769259037694,-420.0,0.0001259,2]
[403188497,1769259037703,-1122.69841957,0.0001259,2]
[403188498,1769259037715,-77.30158043,0.0001259,2]
[403188499,1769259037725,-250.0,0.00012609,2]
[403188500,1769259037734,-300.0,0.00012609,2]
[403188501,1769259037744,-194.82973596,0.00012609,2]
[403188502,1769259037759,-300.0,0.00012609,2]
[403188503,1769259037771,-200.0,0.0001266,2]
[403188504,1769259037782,-40.60868361,0.00012699,2]
[403188505,1769259037795,-813.82131639,0.00012699,2]
[403188506,1769259037805,-150.08724192,0.0001283,2]
[403188507,1769259037815,-300.0,0.0001283,2]
[403188508,1769259037824,-500.0,0.0001283,2]
[403188509,1769259037834,-1124.26342056,0.00012894,2]
[403188510,1769259037846,-3439.82876285,0.00012894,2]
[403188511,1769259037855,-150.0,0.00013335,2]
[403188512,1769259037864,-150.0,0.00013335,2]
[403188514,1769259037874,-500.0,0.00013335,2]
[403188516,1769259037883,-158.58448386,0.00013335,2]
[403188518,1769259037893,-500.0,0.00013335,2]
[403188520,1769259037903,-165.34958219,0.00013335,2]
[403188521,1769259037912,-150.0,0.00013335,2]
[403188523,1769259037921,-500.0,0.00013335,2]
[403188526,1769259037932,-500.0,0.00013335,2]
[403188527,1769259037941,-500.0,0.00013335,2]
[403188529,1769259037956,-500.0,0.00013335,2]
[403188531,1769259037966,-150.0,0.00013335,2]
[403188533,1769259037975,-150.0,0.00013335,2]
[403188535,1769259037988,-420.0,0.00013366,2]
[403188537,1769259037997,-215.96483373,0.0001339,2]
[403188539,1769259038006,-205.41720599,0.0001339,2]
[403188541,1769259038016,-500.0,0.0001339,2]
[403188543,1769259038026,-500.0,0.0001339,2]
[403188545,1769259038035,-150.0,0.0001339,2]
[403188547,1769259038045,-28.02779775,0.0001339,2]
[403188549,1769259038062,-471.97220225,0.0001339,2]
[403188551,1769259038071,-500.0,0.0001339,2]
[403188553,1769259038081,-500.0,0.0001339,2]
[403188555,1769259038090,-500.0,0.0001339,2]
[403188557,1769259038100,-1680.0,0.00013396,2]
[403188559,1769259038109,-350.0,0.00013445,2]
[403188562,1769259038122,-500.0,0.00013445,2]
[403188564,1769259038132,-150.0,0.00013445,2]
[403188566,1769259038142,-500.0,0.00013445,2]
[403188567,1769259038151,-500.0,0.00013445,2]
[403188568,1769259038162,-500.0,0.00013445,2]
[403188569,1769259038172,-500.0,0.00013445,2]
[403188570,1769259038181,-150.0,0.00013449,2]
[403188571,1769259038191,-200.85753101,0.00013449,2]
[403188572,1769259038201,-150.0,0.00013449,2]
[403188573,1769259038211,-150.0,0.00013449,2]
[403188574,1769259038220,-150.0,0.00013449,2]
[403188575,1769259038230,-150.0,0.00013449,2]
[403188576,1769259038240,-150.0,0.00013449,2]
[403188577,1769259038250,-150.0,0.00013449,2]
[403188578,1769259038260,-500.0,0.00013449,2]
[403188579,1769259038270,-500.0,0.00013449,2]
[403188580,1769259038280,-686.0,0.00013472,2]
[403188581,1769259038289,-426.0,0.00013472,2]
[403188582,1769259038299,-351.0,0.00013499,2]
[403188583,1769259038309,-267.27206422,0.00013499,2]
[403188584,1769259038325,-232.72793578,0.00013499,2]
[403188585,1769259038335,-150.0,0.00013499,2]
[403188586,1769259038345,-500.0,0.00013499,2]
[403188588,1769259038355,-500.0,0.00013499,2]
[403188589,1769259038365,-500.0,0.00013499,2]
[403188591,1769259038375,-158.7610726,0.00013499,2]
[403188593,1769259038384,-150.0,0.00013504,2]
[403188595,1769259038395,-175.63030324,0.00013504,2]
[403188598,1769259038404,-150.0,0.00013504,2]
[403188600,1769259038414,-150.0,0.00013504,2]
[403188602,1769259038423,-500.0,0.00013504,2]
[403188604,1769259038433,-216.92,0.00013513,2]
[403188606,1769259038443,-500.0,0.00013554,2]
[403188608,1769259038452,-150.0,0.00013554,2]
[403188610,1769259038462,-248.51907339,0.00013554,2]
[403188612,1769259038472,-500.0,0.00013554,2]
[403188614,1769259038481,-493.25248034,0.00013554,2]
[403188615,1769259038492,-150.0,0.00013559,2]
[403188617,1769259038501,-200.0,0.00013559,2]
[403188619,1769259038511,-150.0,0.00013559,2]
[403188622,1769259038525,-500.0,0.00013559,2]
[403188624,1769259038535,-500.0,0.00013609,2]
[403188626,1769259038544,-250.0,0.00013609,2]
[403188628,1769259038554,-500.0,0.00013609,2]
[403188630,1769259038563,-4564.09218341,0.00013609,2]
[403188632,1769259038573,-150.0,0.00013613,2]
[403188634,1769259038583,-200.0,0.00013613,2]
[403188636,1769259038594,-500.0,0.00013613,2]
[403188638,1769259038603,-402.81706826,0.00013664,2]
[403188640,1769259038614,-290.22964713,0.00013668,2]
[403188642,1769259038623,-500.0,0.00013668,2]
[403188644,1769259038633,-500.0,0.00013698,2]
[403188646,1769259038642,-500.0,0.00013698,2]
[403188648,1769259038651,-500.0,0.00013698,2]
[403188650,1769259038662,-500.0,0.00013698,2]
[403188652,1769259038672,-198.83020825,0.00013698,2]
[403188654,1769259038682,-500.0,0.00013698,2]
[403188656,1769259038691,-500.0,0.00013698,2]
[403188658,1769259038701,-500.0,0.00013698,2]
[403188660,1769259038711,-500.0,0.00013698,2]
[403188661,1769259038720,-500.0,0.00013698,2]
[403188662,1769259038730,-500.0,0.00013698,2]
[403188663,1769259038739,-500.0,0.00013698,2]
[403188664,1769259038749,-500.0,0.00013698,2]
[403188665,1769259038759,-500.0,0.00013698,2]
[403188666,1769259038768,-500.0,0.00013698,2]
[403188667,1769259038778,-433.0,0.00013698,2]
[403188668,1769259038787,-1043.95,0.00013698,2]
[403188669,1769259038797,-171.84070591,0.00013699,3]
[403188670,1769259038807,-150.07696773,0.00013699,3]
[403188671,1769259038816,-202.03058125,0.00013699,3]
[403188672,1769259038825,-710.83,0.00013699,2]
[403188673,1769259038835,-375.40713224,0.00013699,2]
[403188674,1769259038848,-124.59286776,0.00013699,2]
[403188675,1769259038857,-500.0,0.00013699,2]
[403188676,1769259038867,-500.0,0.00013699,2]
[403188677,1769259038876,-500.0,0.00013699,2]
[403188678,1769259038890,-500.0,0.00013699,2]
[403188679,1769259038900,-500.0,0.00013699,2]
[403188680,1769259038909,-513.25535788,0.00013699,2]
[403188681,1769259038919,-61.64095274,0.00013723,2]
[403188682,1769259038932,-438.35904726,0.00013723,2]
[403188683,1769259038943,-365.7708818,0.00013723,2]
[403188684,1769259038957,-500.0,0.00013828,2]
[403188685,1769259038967,-150.0,0.00013828,2]
[403188686,1769259038977,-150.0,0.00013828,2]
[403188687,1769259038987,-150.0,0.00013828,2]
[403188688,1769259038997,-180.0,0.00013828,2]
[403188689,1769259039007,-500.0,0.00013883,2]
[403188690,1769259039017,-150.0,0.00013883,2]
[403188691,1769259039026,-150.0,0.00013883,2]
[403188692,1769259039036,-500.0,0.00013938,2]
[403188693,1769259039048,-150.0,0.00013938,2]
[403188694,1769259039057,-150.0,0.00013938,2]
[403188695,1769259039066,-465.87007094,0.00013972,2]
[403188696,1769259039078,-578.07992906,0.00013972,2]
[403188697,1769259039090,-500.0,0.00013992,2]
[403188698,1769259039099,-150.0,0.00013992,2]
[403188699,1769259039109,-250.0,0.00013992,2]
[403188700,1769259039119,-500.0,0.00014,2]
[403188701,1769259039129,-551.35617577,0.00014047,2]
[403188702,1769259039139,-241.33515789,0.00014047,2]
[403188703,1769259039148,-1043.95,0.00014246,2]
[403188704,1769259039158,-283.87799629,0.00014283,2]
[403188705,1769259039169,-174.61919141,0.00014295,2]
[403188706,1769259039178,-578.20924308,0.00014295,2]
[403188707,1769259039188,-500.0,0.00014295,2]
[403188708,1769259039198,-500.0,0.00014295,2]
[403188709,1769259039208,-500.0,0.00014295,2]
[403188710,1769259039217,-500.0,0.00014295,2]
[403188711,1769259039227,-500.0,0.00014295,2]
[403188712,1769259039236,-500.0,0.00014295,2]
[403188713,1769259039246,-500.0,0.00014295,2]
[403188714,1769259039255,-500.0,0.00014295,2]
[403188715,1769259039265,-500.0,0.00014295,2]
[403188716,1769259039276,-500.0,0.00014295,2]
[403188717,1769259039285,-500.0,0.00014295,2]
[403188718,1769259039295,-721.12765535,0.00014295,2]
[403188719,1769259039305,-54.29735694,0.00014295,2]
[403188720,1769259039322,-195.70264306,0.00014295,2]
[403188721,1769259039332,-64.54735694,0.00014295,2]
[403188722,1769259039344,-185.45264306,0.00014295,2]
[403188723,1769259039354,-263.33008425,0.00014295,2]
[403188724,1769259039364,-115.30589109,0.00014295,2]
[403188726,1769259039375,-134.69410891,0.00014295,2]
[403188727,1769259039385,-342.31613263,0.00014295,2]
[403188728,1769259039396,-339.51234291,0.00014295,2]
[403188729,1769259039408,-61.67922595,0.00014295,2]
[403188730,1769259039417,-250.0,0.00014295,2]
[403188732,1769259039427,-112.74079342,0.00014295,2]
[403188733,1769259039447,-209.86990658,0.00014295,2]
[403188734,1769259039457,-250.0,0.00014295,2]
[403188735,1769259039467,-250.0,0.00014295,2]
[403188736,1769259039484,-250.0,0.00014295,2]
[403188737,1769259039494,-266.11006595,0.00014295,2]
[403188738,1769259039504,-500.0,0.00014295,2]
[403188739,1769259039513,-500.0,0.00014295,2]
[403188740,1769259039523,-500.0,0.00014295,2]
[403188741,1769259039532,-500.0,0.00014295,2]
[403188742,1769259039542,-500.0,0.00014295,2]
[403188743,1769259039551,-500.0,0.00014295,2]
[403188744,1769259039561,-500.0,0.00014295,2]
[403188745,1769259039570,-500.0,0.00014295,2]
[403188746,1769259039579,-500.0,0.00014295,2]
[403188747,1769259039589,-500.0,0.00014295,2]
[403188748,1769259039599,-250.0,0.00014295,2]
[403188749,1769259039608,-500.0,0.00014295,2]
[403188750,1769259039617,-250.0,0.00014295,2]
[403188751,1769259039628,-250.0,0.00014295,2]
[403188752,1769259039638,-151.0,0.00014295,2]
[403188753,1769259039648,-250.0,0.00014295,2]
[403188754,1769259039658,-250.0,0.00014295,2]
[403188755,1769259039668,-151.0,0.00014295,2]
[403188756,1769259039678,-250.0,0.00014295,2]
[403188757,1769259039687,-151.0,0.00014295,2]
[403188758,1769259039696,-250.0,0.00014295,2]
[403188759,1769259039707,-151.0,0.00014295,2]
[403188760,1769259039716,-250.0,0.00014295,2]
[403188761,1769259039728,-151.0,0.00014295,2]
[403188762,1769259040096,-250.0,0.00014295,2]
[403188763,1769259040105,-151.0,0.00014295,2]
[403188764,1769259040115,-250.0,0.00014295,2]
[403188765,1769259040128,-151.0,0.00014295,2]
[403188766,1769259040138,-250.0,0.00014295,2]
[403188767,1769259040147,-250.0,0.00014295,2]
[403188768,1769259040156,-250.0,0.00014295,2]
[403188769,1769259040166,-151.0,0.00014295,2]
[403188770,1769259040175,-250.0,0.00014295,2]
[403188771,1769259040185,-151.0,0.00014295,2]
[403188772,1769259040194,-250.0,0.00014295,2]
[403188773,1769259040204,-151.0,0.00014295,2]
[403188775,1769259040213,-250.0,0.00014295,2]
[403188777,1769259040222,-151.0,0.00014295,2]
[403188779,1769259040231,-250.0,0.00014295,2]
[403188781,1769259040240,-854.2589148,0.00014295,2]
[403188783,1769259040250,-250.0,0.00014295,2]
[403188785,1769259040259,-250.0,0.00014295,2]
[403188787,1769259040268,-250.0,0.00014295,2]
[403188789,1769259040277,-250.0,0.00014295,2]
[403188791,1769259040287,-500.0,0.00014295,2]
[403188793,1769259040296,-250.0,0.00014295,2]
[403188795,1769259040305,-500.0,0.00014295,2]
[403188797,1769259040315,-500.0,0.00014295,2]
[403188799,1769259040324,-500.0,0.00014295,2]
[403188801,1769259040334,-500.0,0.00014295,2]
[403188803,1769259040343,-500.0,0.00014295,2]
[403188805,1769259040352,-500.0,0.00014295,2]
[403188807,1769259040361,-500.0,0.00014295,2]
[403188809,1769259040371,-500.0,0.00014295,2]
[403188811,1769259040380,-500.0,0.00014295,2]
[403188813,1769259040389,-500.0,0.00014295,2]
[403188814,1769259040398,-500.0,0.00014295,2]
[403188815,1769259040407,-500.0,0.00014295,2]
[403188816,1769259040416,-500.0,0.00014295,2]
[403188817,1769259040426,-500.0,0.00014295,2]
[403188818,1769259040435,-500.0,0.00014295,2]
[403188819,1769259040444,-500.0,0.00014295,2]
[403188820,1769259040454,-500.0,0.00014295,2]
[403188821,1769259040463,-500.0,0.00014295,2]
[403188822,1769259040473,-500.0,0.00014295,2]
[403188823,1769259040482,-209.40437684,0.00014295,2]
[403188824,1769259040492,-500.0,0.00014295,2]
[403188825,1769259040501,-500.0,0.00014295,2]
[403188826,1769259040514,-268.18990871,0.00014303,2]
[403188827,1769259040523,-151.0,0.00014323,2]
[403188828,1769259040532,-4564.09218341,0.00014324,2]
[403188829,1769259040542,-200.0,0.00014383,2]
[403188830,1769259040552,-500.0,0.00014387,2]
[403188831,1769259040561,-8590.01,0.0001439,2]
[403188832,1769259040570,-150.0,0.00014468,2]
[403188833,1769259040580,-707.51,0.000145,2]
[403188834,1769259040590,-1043.95,0.0001452,2]
[403188835,1769259040601,-4867.9,0.00014589,2]
[403188836,1769259040611,-587.0,0.00014671,2]
[403188837,1769259040620,-2351.0,0.00014736,2]
[403188838,1769259040630,-1043.95,0.00014794,2]
[403188839,1769259040639,-150.0,0.00014795,2]
[403188840,1769259040648,-150.0,0.00014795,2]
[403188841,1769259040659,-198.56508977,0.00014795,2]
[403188842,1769259040668,-283.87799626,0.000148,2]
[403188843,1769259040678,-181.08010149,0.00014843,2]
[403188844,1769259040687,-323.07684382,0.00014843,2]
[403188845,1769259040696,-885.86649465,0.00014843,2]
[403188846,1769259040706,-217.15233878,0.00014843,2]
[403188847,1769259040716,-328.0,0.00014971,2]
[403188848,1769259040726,-4564.09218341,0.0001504,2]
[403188849,1769259040736,-612.72,0.00015041,2]
[403188850,1769259040746,-484.52,0.00015041,2]
[403188851,1769259040756,-969.04,0.00015041,2]
[403188852,1769259040766,-612.72,0.00015041,2]
[403188853,1769259040775,-612.72,0.00015041,2]
[403188854,1769259040784,-1043.95,0.00015068,2]
[403188855,1769259040795,-152.0,0.00015114,3]
[403188856,1769259040804,-151.0,0.00015125,2]
[403188857,1769259040814,-151.0,0.00015127,2]
[403188858,1769259040824,-151.0,0.00015127,2]
[403188859,1769259040833,-1002.67929229,0.00015255,2]
[403188860,1769259040843,-1600.0,0.00015274,2]
[403188861,1769259040852,-250.0,0.0001528,2]
[403188862,1769259040861,-9999.99,0.0001531,2]
[403188863,1769259040870,-182.74,0.0001531,2]
[403188864,1769259040880,-37000.92,0.0001531,2]
[403188865,1769259040895,-150.99,0.0001531,2]
[403188866,1769259040907,-283.87799626,0.00015316,2]
[403188867,1769259040918,-1043.95,0.00015342,2]
[403188868,1769259040929,-187.78006525,0.00015391,2]
[403188869,1769259040939,-225.18697532,0.00015391,2]
[403188870,1769259040954,-502.0,0.00015425,2]
[403188871,1769259040964,-612.72,0.00015441,2]
[403188872,1769259040973,-484.52,0.00015441,2]
[403188873,1769259040983,-612.72,0.00015441,2]
[403188874,1769259040993,-484.52,0.00015441,2]
[403188875,1769259041003,-484.52,0.00015441,2]
[403188876,1769259041014,-612.72,0.00015441,2]
[403188877,1769259041026,-484.52,0.00015541,2]
[403188878,1769259041037,-612.72,0.00015541,2]
[403188879,1769259041049,-1043.95,0.00015616,2]
[403188880,1769259041058,-334.5472959,0.00015664,2]
[403188881,1769259041067,-359.78,0.00015678,2]
[403188882,1769259041076,-196.12,0.0001571,2]
[403188883,1769259041085,-196.12,0.00015743,2]
[403188884,1769259041095,-4564.09218341,0.00015755,2]
[403188885,1769259041105,-196.12,0.00015776,2]
[403188886,1769259041115,-196.12,0.00015809,2]
[403188887,1769259041124,-283.87799626,0.00015833,2]
[403188888,1769259041134,-196.12,0.00015843,2]
[403188889,1769259041145,-1349.46,0.00015863,2]
[403188890,1769259041155,-500.0,0.00015873,2]
[403188891,1769259041164,-500.0,0.00015873,2]
[403188892,1769259041173,-500.0,0.00015873,2]
[403188893,1769259041183,-500.0,0.00015873,2]
[403188894,1769259041192,-500.0,0.00015873,2]
[403188895,1769259041202,-500.0,0.00015873,2]
[403188896,1769259041212,-267.41486489,0.00015873,2]
[403188897,1769259041223,-500.0,0.00015873,2]
[403188898,1769259041233,-500.0,0.00015873,2]
[403188899,1769259041243,-500.0,0.00015873,2]
[403188900,1769259041252,-500.0,0.00015873,2]
[403188901,1769259041262,-500.0,0.00015873,2]
[403188902,1769259041272,-500.0,0.00015873,2]